fUST/lending_fUST_20250106
["ID","MTS","AMOUNT","RATE_DAILY","PERIOD"]
[347800362,1736113856672,-352.8433746,0.00022027,2]
[347800363,1736113856681,-352.5032232,0.00022027,2]
[347800364,1736113856690,-352.7299908,0.00022027,2]
[347800365,1736113856699,-777.78170894,0.00022068,2]
[347800366,1736113856709,-1000.0,0.00022068,2]
[347800367,1736113856719,-4425.71421264,0.00022072,2]
[347800368,1736113856731,-151.0,0.000221,8]
[347800369,1736113856742,-308.9761414,0.00022164,2]
[347800370,1736113856751,-182.8175691,0.00022164,2]
[347800371,1736113856760,-156.3950149,0.00022164,2]
[347800372,1736113856769,-157.433088,0.00022164,2]
[347800373,1736113856778,-474.3267732,0.00022164,2]
[347800374,1736113856787,-214.515006,0.00022164,2]
[347800375,1736113856796,-153.6400067,0.00022164,2]
[347800376,1736113856806,-153.0,0.00022164,2]
[347800377,1736113856815,-4425.71421264,0.00022176,2]
[347800378,1736113856824,-151.0,0.000222,9]
[347800379,1736113856833,-619.0,0.000222,2]
[347800380,1736113856844,-500.0,0.00022216,3]
[347800381,1736113856853,-500.0,0.00022216,3]
[347800382,1736113856862,-1325.99,0.00022216,3]
[347800383,1736113856871,-726.67,0.00022216,3]
[347800384,1736113856881,-500.0,0.00022217,3]
[347800385,1736113856891,-500.0,0.00022217,3]
[347800386,1736113856900,-500.0,0.00022217,3]
[347800387,1736113856910,-500.0,0.00022217,3]
[347800388,1736113856919,-500.0,0.00022217,3]
[347800389,1736113856927,-500.0,0.00022217,3]
[347800390,1736113856935,-500.0,0.00022217,3]
[347800391,1736113856945,-500.0,0.00022217,3]
[347800392,1736113856954,-551.69,0.00022217,3]
[347800393,1736113856963,-500.0,0.00022224,3]
[347800394,1736113856973,-500.0,0.00022224,3]
[347800395,1736113856982,-500.0,0.00022224,3]
[347800396,1736113856991,-480.63,0.00022224,3]
[347800397,1736113857000,-500.0,0.00022224,3]
[347800398,1736113857009,-500.0,0.00022224,3]
[347800399,1736113857019,-500.0,0.00022258,3]
[347800400,1736113857028,-500.0,0.00022258,3]
[347800401,1736113857037,-9560.33,0.00022258,3]
[347800402,1736113857046,-500.0,0.00022258,3]
[347800403,1736113857056,-690.37,0.00022259,3]
[347800404,1736113857065,-604.01,0.00022259,3]
[347800405,1736113857141,-1177.18,0.0002226,3]
[347800406,1736113857151,-500.0,0.0002226,3]
[347800407,1736113857160,-500.0,0.00022261,3]
[347800408,1736113857169,-1852.24,0.00022263,3]
[347800409,1736113857179,-500.0,0.00022263,3]
[347800410,1736113857188,-500.0,0.00022263,2]
[347800411,1736113857198,-4425.71421264,0.00022279,2]
[347800412,1736113857208,-151.0,0.000223,5]
[347800413,1736113857217,-150.0,0.00022313,2]
[347800414,1736113857226,-2080.0,0.00022313,2]
[347800415,1736113857235,-627.928,0.00022313,2]
[347800416,1736113857244,-2319.0,0.00022313,2]
[347800417,1736113857254,-394.0,0.00022313,2]
[347800418,1736113857263,-183.382,0.00022313,2]
[347800419,1736113857273,-260.0,0.00022363,2]
[347800420,1736113857284,-4425.71421264,0.00022383,2]
[347800421,1736113857293,-151.0,0.000224,8]
[347800422,1736113857303,-151.0,0.00022447,7]
[347800423,1736113857314,-173.81914418,0.00022452,2]
[347800424,1736113857325,-4425.71421264,0.00022486,2]
[347800425,1736113857335,-500.0,0.0002249,3]
[347800426,1736113857344,-628.08,0.0002249,3]
[347800427,1736113857354,-1325.99,0.0002249,3]
[347800428,1736113857363,-726.67,0.0002249,3]
[347800429,1736113857373,-500.0,0.00022491,3]
[347800430,1736113857382,-500.0,0.00022491,3]
[347800431,1736113857392,-500.0,0.00022491,3]
[347800432,1736113857403,-649.2,0.00022491,3]
[347800433,1736113857415,-500.0,0.00022491,3]
[347800434,1736113857426,-500.0,0.00022491,3]
[347800435,1736113857435,-500.0,0.00022491,3]
[347800436,1736113857445,-500.0,0.00022491,3]
[347800437,1736113857457,-526.45,0.00022498,3]
[347800438,1736113857466,-175.92,0.00022498,3]
[347800439,1736113857476,-328.50557765,0.00022498,3]
[347800440,1736113857486,-403.2,0.00022498,3]
[347800441,1736113857496,-30479.89280353,0.000225,5]
[347800442,1736113857506,-500.0,0.000225,5]
[347800443,1736113857514,-502.25535186,0.000225,5]
[347800444,1736113857522,-151.0,0.000225,7]
[347800445,1736113857533,-534.96,0.00022532,3]
[347800446,1736113857542,-355.73,0.00022532,3]
[347800447,1736113857551,-1850.82378213,0.00022532,3]
[347800450,1736114601230,161.632798,0.00013973,2]
[347800451,1736114835145,-204.63998893,0.00017171,2]
[347800452,1736114835168,-71.98151277,0.00017344,2]
[347800453,1736114836111,-132.65847616,0.00017344,2]
[347800454,1736114836136,-89.23553002,0.00018827,2]
[347800455,1736114839084,-790.71635508,0.00018827,2]
[347800456,1736114839106,-152.53550907,0.00019078,2]
[347800457,1736114839128,-882.89,0.00019178,2]
[347800458,1736114839150,-500.0,0.00019178,2]
[347800459,1736114839170,-500.0,0.00019178,2]
[347800460,1736114839190,-500.0,0.00019178,2]
[347800461,1736114839211,-580.5538592,0.00019178,2]
[347800462,1736114839232,-500.0,0.00019178,5]
[347800463,1736114839253,-500.0,0.00019178,2]
[347800464,1736114839274,-500.0,0.00019178,2]
[347800465,1736114839295,-500.0,0.00019178,2]
[347800466,1736114839318,-500.0,0.00019178,2]
[347800467,1736114839340,-500.0,0.00019178,2]
[347800468,1736114839361,-500.0,0.00019178,2]
[347800469,1736114839384,-500.0,0.00019178,2]
[347800470,1736114839405,-500.0,0.00019178,2]
[347800471,1736114839427,-500.0,0.00019178,2]
[347800472,1736114839448,-500.0,0.00019178,2]
[347800473,1736114839469,-500.0,0.00019178,2]
[347800474,1736114839489,-500.0,0.00019178,2]
[347800475,1736114839511,-500.0,0.00019178,2]
[347800476,1736114839532,-500.0,0.00019178,2]
[347800477,1736114839553,-500.0,0.00019178,2]
[347800478,1736114839575,-500.0,0.00019178,2]
[347800479,1736114839596,-500.0,0.00019178,2]
[347800480,1736114839618,-500.0,0.00019178,2]
[347800481,1736114839640,-500.0,0.00019178,2]
[347800482,1736114839663,-500.0,0.00019178,2]
[347800483,1736114839685,-500.0,0.00019178,2]
[347800484,1736114839707,-223.67362033,0.00019178,2]
[347800485,1736114839731,-500.0,0.00019178,2]
[347800486,1736114839752,-500.0,0.00019178,2]
[347800487,1736114839773,-455.69889578,0.00019178,2]
[347800488,1736114839794,-500.0,0.00019178,2]
[347800489,1736114839815,-500.0,0.00019178,2]
[347800490,1736114839836,-500.0,0.00019178,2]
[347800491,1736114839858,-500.0,0.00019178,2]
[347800492,1736114839880,-165.3,0.00019178,2]
[347800493,1736114839901,-500.0,0.00019178,2]
[347800494,1736114839922,-500.22473609,0.00019178,2]
[347800495,1736114839945,-500.0,0.00019178,2]
[347800496,1736114839967,-500.0,0.00019178,2]
[347800497,1736114839989,-500.0,0.00019178,2]
[347800498,1736114840010,-500.0,0.00019178,2]
[347800499,1736114840032,-500.0,0.00019178,2]
[347800500,1736114840053,-500.0,0.00019178,2]
[347800501,1736114840076,-278.85877836,0.00019178,2]
[347800502,1736114840099,-500.0,0.00019178,2]
[347800503,1736114840121,-512.16,0.00019178,2]
[347800504,1736114840143,-552.18,0.00019178,2]
[347800505,1736114840165,-500.0,0.00019178,2]
[347800506,1736114840190,-410.70830397,0.00019178,2]
[347800507,1736114854107,-500.0,0.00019178,2]
[347800508,1736114854130,-500.0,0.00019178,2]
[347800509,1736114854155,-500.0,0.00019178,2]
[347800510,1736114854177,-500.0,0.00019178,2]
[347800511,1736114854199,-500.0,0.00019178,2]
[347800512,1736114854222,-500.0,0.00019178,2]
[347800513,1736114854244,-500.0,0.00019178,2]
[347800514,1736114854267,-500.0,0.00019178,2]
[347800515,1736114854290,-500.0,0.00019178,2]
[347800516,1736114854313,-145.94424087,0.00019178,2]
[347800517,1736114950172,-300.0,0.00019177,2]
[347800518,1736114950193,-354.05575913,0.00019178,2]
[347800519,1736114950216,-500.0,0.00019178,2]
[347800520,1736114950239,-500.0,0.00019178,2]
[347800521,1736114950260,-500.0,0.00019178,2]
[347800522,1736114950282,-500.0,0.00019178,2]
[347800523,1736114950303,-500.0,0.00019178,2]
[347800524,1736114950323,-500.0,0.00019178,2]
[347800525,1736114950346,-962.78,0.00019178,2]
[347800526,1736114950371,-500.0,0.00019178,2]
[347800527,1736114950395,-500.0,0.00019178,2]
[347800528,1736114950416,-500.0,0.00019178,2]
[347800529,1736114950437,-500.0,0.00019178,2]
[347800530,1736114950457,-500.0,0.00019178,2]
[347800531,1736114950477,-500.0,0.00019178,2]
[347800532,1736114950499,-521.63,0.00019178,2]
[347800533,1736114950520,-500.0,0.00019178,2]
[347800534,1736114950540,-500.0,0.00019178,2]
[347800535,1736114950561,-500.0,0.00019178,2]
[347800536,1736114950581,-510.81252655,0.00019178,2]
[347800537,1736114950759,-500.0,0.00019178,2]
[347800538,1736114950781,-500.0,0.00019178,2]
[347800539,1736114950801,-500.0,0.00019178,2]
[347800540,1736114950821,-500.0,0.00019178,2]
[347800541,1736114950842,-500.0,0.00019178,2]
[347800542,1736114950863,-500.0,0.00019178,2]
[347800543,1736114950883,-500.0,0.00019178,2]
[347800544,1736114950904,-7168.4,0.00019178,2]
[347800545,1736114950925,-500.0,0.00019178,2]
[347800546,1736114950946,-500.0,0.00019178,2]
[347800547,1736114950967,-603.71,0.00019178,2]
[347800548,1736114950990,-500.0,0.00019178,2]
[347800549,1736114951010,-846.1,0.00019178,2]
[347800550,1736114951032,-500.0,0.00019178,2]
[347800551,1736114951054,-292.27,0.00019178,2]
[347800552,1736114951077,-500.0,0.00019178,2]
[347800553,1736114951099,-500.0,0.00019178,2]
[347800554,1736114951120,-500.0,0.00019178,2]
[347800555,1736114951142,-500.0,0.00019178,2]
[347800556,1736114951164,-491.02,0.00019178,5]
[347800557,1736114951186,-500.0,0.00019178,2]
[347800558,1736114951208,-500.0,0.00019178,2]
[347800559,1736114951230,-500.0,0.00019178,2]
[347800560,1736114951252,-162.977515,0.00019178,2]
[347800561,1736114951274,-152.53550906,0.00019352,2]
[347800562,1736114951298,-962.78,0.00019452,3]
[347800563,1736114951320,-521.63,0.00019452,3]
[347800564,1736114951343,-7168.4,0.00019452,3]
[347800565,1736114951368,-500.0,0.00019452,3]
[347800566,1736114951390,-603.87802821,0.00019452,3]
[347800567,1736114951413,-846.1,0.00019452,3]
[347800568,1736114951437,-500.0,0.00019452,3]
[347800569,1736114951459,-500.0,0.00019452,3]
[347800570,1736114951483,-500.0,0.00019452,3]
[347800571,1736114951505,-604.5,0.00019452,3]
[347800572,1736114951527,-500.0,0.00019452,3]
[347800573,1736114951547,-487.39779827,0.00019452,3]
[347800574,1736114951570,-500.0,0.00019452,3]
[347800575,1736114951592,-500.0,0.00019452,3]
[347800576,1736114951615,-962.78,0.00019726,3]
[347800577,1736114951637,-521.63,0.00019726,3]
[347800578,1736114951659,-7168.4,0.00019726,3]
[347800579,1736114951680,-243.93104333,0.00019726,3]
[347800632,1736115032027,-841.42790449,0.00019178,2]
[347800678,1736115032462,-1.00209551,0.00019178,2]
[347800680,1736115032471,-500.0,0.00019178,2]
[347800682,1736115032481,-500.0,0.00019178,2]
[347800684,1736115032490,-1930.94235537,0.00019178,2]
[347800685,1736115032501,-4341.40764463,0.00019178,2]
[347800686,1736115032511,-842.43,0.00019452,3]
[347800687,1736115032520,-500.0,0.00019452,3]
[347800689,1736115032529,-500.0,0.00019452,3]
[347800691,1736115032539,-260.77340263,0.00019452,3]
[347800736,1736115037808,-364.70146768,0.000189,2]
[347800737,1736115037817,-1659.42452315,0.00019452,3]
[347800738,1736115037830,-1503.48528564,0.00019452,3]
[347800745,1736115037909,-78.702672,0.00019452,3]
[347800747,1736115037920,-265.36662593,0.00019452,3]
[347800791,1736115040012,-2088.30008249,0.00019452,3]
[347800794,1736115040030,-416.29740816,0.00019452,3]
[347800796,1736115040040,-256.06895667,0.00019726,3]
[347800798,1736115040050,-846.1,0.00019726,3]
[347800800,1736115040060,-500.0,0.00019726,3]
[347800802,1736115040070,-477.97,0.00019726,3]
[347800804,1736115040079,-211.07,0.00019726,3]
[347800806,1736115040089,-500.0,0.00019726,3]
[347800808,1736115040099,-500.0,0.00019726,3]
[347800810,1736115040108,-500.0,0.00019726,3]
[347800811,1736115040118,-842.43,0.00019726,3]
[347800814,1736115040128,-500.0,0.00019726,3]
[347800816,1736115040137,-500.0,0.00019726,3]
[347800817,1736115040147,-2954.77251529,0.00019726,3]
[347800820,1736115040159,-843.94759587,0.00019726,3]
[347800822,1736115040170,-2473.62988884,0.00019726,3]
[347800824,1736115040180,-590.09522841,0.000199,2]
[347800826,1736115040191,-162.492,0.00019972,2]
[347800828,1736115040200,-1949.15834962,0.0002,2]
[347800999,1736115042934,-1216.84165038,0.0002,2]
[347801001,1736115042943,-500.0,0.0002,3]
[347801003,1736115042953,-846.1,0.0002,3]
[347801005,1736115042963,-500.0,0.0002,3]
[347801007,1736115042973,-324.31,0.0002,3]
[347801009,1736115042984,-383.10259122,0.0002,3]
[347801011,1736115042996,-116.89740878,0.0002,3]
[347801013,1736115043005,-138.94759341,0.0002,3]
[347801074,1736115045906,-361.05240659,0.0002,3]
[347801076,1736115045916,-188.69008741,0.0002,3]
[347801086,1736115045997,-426.554,0.0002,3]
[347801090,1736115046008,-227.18591259,0.0002,3]
[347801093,1736115046018,-500.0,0.0002,3]
[347801096,1736115046027,-513.19,0.0002,3]
[347801099,1736115046037,-6272.35,0.0002,3]
[347801102,1736115046046,-152.53550906,0.00020235,2]
[347801105,1736115046055,-500.0,0.00020273,3]
[347801108,1736115046063,-846.1,0.00020273,3]
[347801111,1736115046072,-488.18857834,0.00020273,3]
[347801400,1736115674421,162.045523,0.00013973,2]
[347801409,1736116039112,-243.13431178,0.000189,2]
[347801410,1736116039141,-579.61497131,0.00019178,2]
[347801411,1736116039165,-500.3499789,0.00019178,2]
[347801412,1736116039190,-477.03911807,0.00019178,2]
[347801413,1736116052124,-23.38853791,0.00019178,2]
[347801414,1736116052150,-248.85156722,0.00019178,2]
[347801415,1736116054209,-252.9480015,0.00019178,2]
[347801416,1736116054236,-500.60432043,0.00019178,2]
[347801417,1736116054260,-501.18358387,0.00019178,2]
[347801418,1736116054284,-612.59832063,0.00019178,2]
[347801419,1736116054308,-637.58638387,0.00019178,2]
[347801420,1736116054332,-212.75485736,0.00019178,2]
[347801421,1736116054359,-500.0,0.00019178,2]
[347801422,1736116054388,-500.0,0.00019178,2]
[347801423,1736116054415,-413.06550822,0.00019178,2]
[347801424,1736116054437,-500.0,0.00019178,2]
[347801425,1736116054463,-645.2,0.00019178,2]
[347801426,1736116054489,-157.0,0.00019178,2]
[347801427,1736116054515,-160.836094,0.00019178,2]
[347801428,1736116054539,-669.83,0.00019451,3]
[347801429,1736116054564,-500.0,0.00019451,5]
[347801430,1736116054591,-501.67066568,0.00019451,3]
[347801431,1736116054618,-500.0,0.00019451,3]
[347801432,1736116054644,-494.13695306,0.00019451,3]
[347801433,1736116054669,-500.0,0.00019451,3]
[347801434,1736116054696,-500.0,0.00019451,3]
[347801435,1736116054722,-500.0,0.00019451,3]
[347801436,1736116054749,-760.74,0.00019451,3]
[347801437,1736116054776,-500.0,0.00019451,3]
[347801438,1736116054807,-500.0,0.00019451,3]
[347801439,1736116054834,-248.78700868,0.00019451,3]
[347801440,1736116054863,-500.0,0.00019451,3]
[347801441,1736116054889,-500.0,0.00019452,3]
[347801442,1736116054915,-500.0,0.00019724,3]
[347801443,1736116054943,-500.0,0.00019724,3]
[347801444,1736116055107,-500.0,0.00019724,3]
[347801445,1736116055129,-648.92,0.00019724,3]
[347801446,1736116055153,-500.0,0.00019724,3]
[347801447,1736116055176,-500.0,0.00019724,3]
[347801448,1736116055201,-500.0,0.00019724,3]
[347801449,1736116055225,-480.13,0.00019724,3]
[347801450,1736116055248,-194.26,0.00019724,3]
[347801451,1736116055271,-444.07336467,0.00019724,3]
[347801452,1736116148135,-4161.47543954,0.00018,2]
[347801453,1736116148157,-606.9170359,0.00018828,2]
[347801454,1736116148182,-500.0,0.00019451,3]
[347801455,1736116148205,-114.61032456,0.00019451,3]
[347801491,1736116232184,-169.15465379,0.00019451,3]
[347801492,1736116232194,-4873.6510843,0.00019451,3]
[347801494,1736116232206,-1185.2689157,0.00019451,3]
[347801496,1736116232216,-500.0,0.00019723,3]
[347801498,1736116232226,-477.4989843,0.00019723,3]
[347801503,1736116232372,-22.5010157,0.00019723,3]
[347801504,1736116232382,-729.05,0.00019723,3]
[347801505,1736116232392,-500.0,0.00019723,3]
[347801506,1736116232402,-500.0,0.00019724,3]
[347801507,1736116232412,-500.0,0.00019724,3]
[347801508,1736116232422,-573.21,0.00019724,3]
[347801509,1736116232432,-500.38856196,0.00019724,3]
[347801510,1736116232441,-171.60234345,0.00019724,3]
[347801511,1736116232451,-500.0,0.00019724,3]
[347801512,1736116232461,-163.158,0.00019725,2]
[347801513,1736116232471,-669.83,0.00019725,3]
[347801514,1736116232481,-500.0,0.00019725,3]
[347801515,1736116232491,-500.0,0.00019725,3]
[347801516,1736116232501,-6058.92,0.00019725,3]
[347801517,1736116232511,-500.0,0.00019726,3]
[347801518,1736116232520,-5131.00686296,0.000198,2]
[347801519,1736116232854,-5011.27919718,0.000198,2]
[347801710,1736116239683,-632.89664166,0.000198,2]
[347801773,1736116240287,-446.23757987,0.000198,2]
[347801848,1736116241287,162.08954119,0.000189,2]
[347802038,1736116243079,-342.02937742,0.000198,2]
[347802040,1736116243089,-168.08242279,0.00019898,2]
[347802041,1736116243099,-580.56540092,0.000199,2]
[347802042,1736116243109,-500.0,0.00019997,3]
[347802043,1736116243119,-729.05,0.00019997,3]
[347802044,1736116243128,-500.0,0.00019997,3]
[347802045,1736116243138,-500.0,0.00019998,3]
[347802046,1736116243147,-669.83,0.00019999,3]
[347802047,1736116243157,-500.0,0.00019999,3]
[347802048,1736116243167,-500.0,0.00019999,3]
[347802050,1736116243177,-6058.92,0.00019999,3]
[347802051,1736116243186,-2276.0,0.0002,2]
[347802053,1736116243196,-580.56540083,0.00020003,2]
[347802055,1736116243206,-580.56540083,0.00020107,2]
[347802057,1736116243215,-546.3689846,0.0002011,2]
[347802058,1736116243225,-580.56540083,0.0002021,2]
[347802060,1736116243234,-500.0,0.00020271,3]
[347802062,1736116243244,-729.05,0.00020271,3]
[347802063,1736116243254,-500.0,0.00020271,3]
[347802065,1736116243263,-500.0,0.00020272,3]
[347802067,1736116243273,-692.08,0.00020272,3]
[347802069,1736116243284,-503.11,0.00020272,3]
[347802073,1736116243295,-669.83,0.00020273,3]
[347802074,1736116243304,-500.0,0.00020273,3]
[347802076,1736116243313,-500.0,0.00020273,3]
[347802078,1736116243323,-6058.92,0.00020273,3]
[347802080,1736116243332,-500.0,0.00020297,3]
[347802081,1736116243341,-500.0,0.00020297,3]
[347802083,1736116243351,-1600.29,0.00020297,3]
[347802084,1736116243360,-500.0,0.00020297,3]
[347802086,1736116243369,-500.0,0.00020297,3]
[347802088,1736116243378,-500.0,0.00020297,2]
[347802089,1736116243387,-1490.01,0.00020297,3]
[347802091,1736116243396,-580.56540083,0.00020314,2]
[347802093,1736116243406,-580.56540083,0.00020417,2]
[347802095,1736116243415,-190.074859,0.00020521,2]
[347802096,1736116243424,-153.0,0.00020521,2]
[347802097,1736116243434,-307.2264451,0.00020521,2]
[347802098,1736116243443,-306.0,0.00020521,2]
[347802099,1736116243452,-580.56540083,0.00020521,2]
[347802100,1736116243462,-500.0,0.00020545,3]
[347802101,1736116243472,-729.05,0.00020545,3]
[347802102,1736116243481,-500.0,0.00020545,3]
[347802103,1736116243491,-500.0,0.00020545,2]
[347802104,1736116243501,-500.0,0.00020545,2]
[347802105,1736116243510,-238.51884591,0.00020545,2]
[347802106,1736116243520,-500.0,0.00020545,2]
[347802107,1736116243529,-500.0,0.00020545,2]
[347802108,1736116243538,-500.0,0.00020545,2]
[347802109,1736116243547,-500.0,0.00020545,2]
[347802110,1736116243556,-500.0,0.00020545,2]
[347802111,1736116243566,-500.0,0.00020545,2]
[347802112,1736116243576,-500.0,0.00020545,2]
[347802113,1736116243586,-512.92492504,0.00020545,2]
[347802114,1736116243595,-447.76408477,0.00020545,2]
[347802115,1736116243605,-500.0,0.00020545,2]
[347802116,1736116243615,-500.0,0.00020545,2]
[347802117,1736116243625,-500.0,0.00020545,2]
[347802118,1736116243635,-500.0,0.00020545,2]
[347802119,1736116243646,-500.0,0.00020545,2]
[347802120,1736116243656,-500.0,0.00020545,2]
[347802121,1736116243665,-500.0,0.00020545,2]
[347802122,1736116243676,-500.0,0.00020545,2]
[347802123,1736116243686,-525.93608244,0.00020545,2]
[347802124,1736116243696,-500.0,0.00020545,2]
[347802125,1736116243705,-500.0,0.00020545,2]
[347802126,1736116243715,-500.0,0.00020546,3]
[347802127,1736116243725,-692.08,0.00020546,3]
[347802128,1736116243735,-503.11,0.00020546,3]
[347802129,1736116243745,-669.83,0.00020547,3]
[347802130,1736116243754,-500.0,0.00020547,3]
[347802131,1736116243764,-500.0,0.00020547,3]
[347802132,1736116243774,-6058.92,0.00020547,3]
[347802133,1736116243784,-500.0,0.00020571,3]
[347802134,1736116243794,-505.35520422,0.00020571,3]
[347802135,1736116243811,-328.95136304,0.00020571,3]
[347802136,1736116243830,-315.929,0.00020571,3]
[347802162,1736116246246,-450.05443274,0.00020571,3]
[347802163,1736116246256,-500.0,0.00020571,3]
[347802164,1736116246266,-500.0,0.00020571,2]
[347802165,1736116246276,-1490.01,0.00020571,3]
[347802166,1736116246286,-580.56540083,0.00020624,2]
[347802167,1736116246295,-119.18830651,0.00020644,2]
[347802168,1736116631981,161.677087,0.00013973,2]
[347802169,1736116697030,340.0,0.00015001,2]
[347802170,1736117138141,-1298.31823445,0.00018339,2]
[347802172,1736117233125,-474.39910485,0.00018628,2]
[347802173,1736117240122,-218.58781305,0.00018628,2]
[347802174,1736117242084,-427.1545875,0.00018628,2]
[347802175,1736117242112,-1075.8952939,0.00018816,2]
[347802176,1736117242139,-150.0,0.000189,2]
[347802177,1736117242167,-37.69020055,0.00019,2]
[347802179,1736117357099,-500.0,0.00019178,2]
[347802180,1736117357123,-480.0,0.00019178,2]
[347802181,1736117362188,-950.62,0.00019178,2]
[347802182,1736117362209,-162.977515,0.00019178,2]
[347802183,1736117365951,242.67842592,0.00019082,2]
[347802235,1736117432537,-60.17016795,0.00019082,2]
[347802237,1736117432547,-265.30976615,0.00019273,2]
[347802239,1736117432556,-1430.62,0.00019452,3]
[347802241,1736117432566,-197.77284311,0.00019724,3]
[347802243,1736117432575,-1430.62,0.00019726,3]
[347802245,1736117432585,-300.0,0.00019798,2]
[347802247,1736117432595,-157.0,0.00019799,2]
[347802249,1736117432604,-530.28,0.00019799,3]
[347802251,1736117432613,-500.0,0.00019799,3]
[347802253,1736117432622,-267.91993975,0.00019799,3]
[347802262,1736117432706,-232.08006025,0.00019799,3]
[347802264,1736117432716,-736.53,0.00019799,3]
[347802266,1736117432725,-500.0,0.00019799,3]
[347802268,1736117432734,-500.0,0.00019799,3]
[347802270,1736117432744,-500.0,0.00019799,3]
[347802272,1736117432753,-553.32,0.00019799,3]
[347802274,1736117432763,-542.52,0.00019799,3]
[347802277,1736117432772,-312.9839815,0.00019799,3]
[347802279,1736117432782,-184.38046151,0.00019897,2]
[347802281,1736117432791,-425.74796086,0.000199,2]
[347802283,1736117432800,-406.21,0.00019962,3]
[347802285,1736117432809,-451.36311769,0.00019962,3]
[347802287,1736117432819,-500.0,0.00019962,3]
[347802289,1736117432828,-284.09,0.00019962,3]
[347802290,1736117432837,-628.37,0.00019962,3]
[347802292,1736117432847,-500.0,0.00019962,3]
[347802295,1736117432856,-4998.39,0.00019962,3]
[347802296,1736117432865,-500.0,0.00019963,3]
[347802299,1736117432875,-500.0,0.00019963,3]
[347802301,1736117432885,-500.0,0.00019996,3]
[347802303,1736117432894,-500.0,0.00019997,3]
[347802305,1736117432904,-574.62,0.00019997,3]
[347802307,1736117432913,-500.0,0.00019997,3]
[347802309,1736117432922,-500.0,0.00019997,3]
[347802311,1736117432931,-345.03588468,0.00019997,3]
[347802313,1736117432943,-154.96411532,0.00019997,3]
[347802315,1736117432953,-251.35084068,0.00019997,3]
[347802317,1736117432964,-248.64915932,0.00019997,3]
[347802319,1736117432974,-375.11795199,0.00019997,3]
[347802848,1736117438214,-58.84816415,0.00019997,3]
[347802851,1736117438224,-500.0,0.00019997,3]
[347802853,1736117438233,-578.44,0.00019997,3]
[347802855,1736117438243,-500.0,0.00019997,3]
[347802856,1736117438252,-500.75654411,0.00019997,3]
[347802858,1736117438261,-500.0,0.00019997,3]
[347802860,1736117438271,-415.14938101,0.00019997,3]
[347802862,1736117438280,-500.0,0.00019997,3]
[347802864,1736117438290,-500.0,0.00019997,3]
[347802866,1736117438299,-500.0,0.00019997,3]
[347802868,1736117438309,-500.0,0.00019997,3]
[347802870,1736117438318,-500.0,0.00019997,3]
[347802872,1736117438327,-500.0,0.00019997,3]
[347802874,1736117438337,-194.26666315,0.00019997,3]
[347802876,1736117438347,-265.73333685,0.00019997,3]
[347802878,1736117438357,-500.0,0.00019997,3]
[347802880,1736117438366,-500.0,0.00019997,3]
[347802882,1736117438377,-500.0,0.00019997,3]
[347802884,1736117438387,-500.0,0.00019997,3]
[347802886,1736117438397,-500.0,0.00019997,3]
[347802888,1736117438407,-1430.62,0.0002,3]
[347802890,1736117438416,-425.7479606,0.00020003,2]